[Event "*** Titled Tuesday 3|2 Blitz"]
[Site "Chess.com"]
[Date "2016.03.01"]
[Round "1"]
[White "Quiet_Desperation"]
[Black "AndroQueen"]
[Result "0-1"]
[WhiteElo "2271"]
[BlackElo "2527"]
[TimeControl "180+2"]
[EndTime "11:09:01 PST"]
[Termination "AndroQueen won by resignation"]

1. e4 {[%clk 0:03:00.8]} 1... e6 {[%clk 0:03:00]} 2. d4 {[%clk 0:02:59.4]} 2...
d5 {[%clk 0:03:01]} 3. Nd2 {[%clk 0:03:00.1]} 3... Nc6 {[%clk 0:02:59.3]} 4.
Ngf3 {[%clk 0:02:56.6]} 4... Nf6 {[%clk 0:02:59.8]} 5. e5 {[%clk 0:02:57.6]}
5... Nd7 {[%clk 0:03:01]} 6. Bd3 {[%clk 0:02:58.9]} 6... Nb4 {[%clk 0:03:00.9]}
7. Be2 {[%clk 0:02:55.4]} 7... c5 {[%clk 0:03:02.4]} 8. c3 {[%clk 0:02:56.9]}
8... Nc6 {[%clk 0:03:03.6]} 9. Bd3 {[%clk 0:02:56.2]} 9... h6 {[%clk 0:03:04]}
10. O-O {[%clk 0:02:54.6]} 10... g5 {[%clk 0:03:04.3]} 11. Bb5 {[%clk
0:02:26.1]} 11... g4 {[%clk 0:02:36.6]} 12. Bxc6 {[%clk 0:02:25.3]} 12... bxc6
{[%clk 0:02:35.3]} 13. Ne1 {[%clk 0:02:25.6]} 13... h5 {[%clk 0:02:29.8]} 14.
Nc2 {[%clk 0:02:09.6]} 14... cxd4 {[%clk 0:02:23.8]} 15. cxd4 {[%clk 0:02:09.1]}
15... Ba6 {[%clk 0:02:23.9]} 16. Re1 {[%clk 0:02:09]} 16... c5 {[%clk
0:02:25.4]} 17. Nf1 {[%clk 0:02:06.9]} 17... Bg7 {[%clk 0:02:13.5]} 18. Bf4
{[%clk 0:02:02.9]} 18... Rb8 {[%clk 0:02:03]} 19. b3 {[%clk 0:02:00.9]} 19...
Qe7 {[%clk 0:01:49.2]} 20. Qd2 {[%clk 0:01:53.9]} 20... O-O {[%clk 0:01:34.3]}
21. Ng3 {[%clk 0:01:29.4]} 21... f6 {[%clk 0:01:17.7]} 22. Nxh5 {[%clk
0:01:21.1]} 22... fxe5 {[%clk 0:01:18.2]} 23. dxe5 {[%clk 0:01:22.5]} 23... Rf5
{[%clk 0:01:14.8]} 24. Nxg7 {[%clk 0:01:14.2]} 24... Qxg7 {[%clk 0:01:15.8]} 25.
Bg3 {[%clk 0:00:59.9]} 25... Rbf8 {[%clk 0:01:06.3]} 26. Ne3 {[%clk 0:00:56.9]}
26... Rh5 {[%clk 0:01:03.4]} 27. Rad1 {[%clk 0:00:53.4]} 27... d4 {[%clk
0:01:03.9]} 28. Nc4 {[%clk 0:00:50.5]} 28... Bxc4 {[%clk 0:01:03.8]} 29. bxc4
{[%clk 0:00:52.1]} 29... Nb6 {[%clk 0:01:04.9]} 30. Qa5 {[%clk 0:00:51.6]} 30...
Rc8 {[%clk 0:00:59.4]} 31. Qa6 {[%clk 0:00:44.6]} 31... Rh7 {[%clk 0:00:43.6]}
32. a4 {[%clk 0:00:38.9]} 32... Qb7 {[%clk 0:00:42.1]} 33. Qb5 {[%clk
0:00:38.5]} 33... Qd7 {[%clk 0:00:41.1]} 34. Qa6 {[%clk 0:00:38.8]} 34... Qxa4
{[%clk 0:00:37.8]} 35. Qxa4 {[%clk 0:00:29.1]} 35... Nxa4 {[%clk 0:00:39.7]} 36.
Re4 {[%clk 0:00:29.6]} 36... Rg7 {[%clk 0:00:34.9]} 37. Bh4 {[%clk 0:00:31]}
37... Nc3 {[%clk 0:00:35.8]} 38. Ree1 {[%clk 0:00:31.6]} 38... Nxd1 {[%clk
0:00:37]} 39. Rxd1 {[%clk 0:00:33.5]} 39... Rb7 {[%clk 0:00:37.7]} 40. h3 {[%clk
0:00:33.1]} 40... gxh3 {[%clk 0:00:38.1]} 41. gxh3 {[%clk 0:00:34.7]} 41... Rcb8
{[%clk 0:00:39.6]} 42. Kh2 {[%clk 0:00:34]} 42... Rb1 {[%clk 0:00:40.7]} 43. Rd3
{[%clk 0:00:35.3]} 43... R8b3 {[%clk 0:00:41.8]} 44. Rd2 {[%clk 0:00:34.5]}
44... R1b2 {[%clk 0:00:42.8]} 45. Rd1 {[%clk 0:00:34.6]} 45... Rb1 {[%clk
0:00:35.1]} 46. Rd2 {[%clk 0:00:33.9]} 46... Rc3 {[%clk 0:00:31.6]} 47. Bf6
{[%clk 0:00:34.3]} 47... Rbb3 {[%clk 0:00:30.7]} 48. h4 {[%clk 0:00:27.4]} 48...
a5 {[%clk 0:00:30.6]} 49. Re2 {[%clk 0:00:27]} 49... d3 {[%clk 0:00:28.2]} 50.
Re4 {[%clk 0:00:25.9]} 50... d2 {[%clk 0:00:28.5]} 51. Rg4+ {[%clk 0:00:27.2]}
51... Kf8 {[%clk 0:00:29.1]} 0-1

[Event "*** Titled Tuesday 3|2 Blitz"]
[Site "Chess.com"]
[Date "2016.03.01"]
[Round "1"]
[White "KNVB"]
[Black "GeorgMeier"]
[Result "0-1"]
[WhiteElo "2358"]
[BlackElo "2760"]
[TimeControl "180+2"]
[EndTime "11:10:20 PST"]
[Termination "GeorgMeier won by resignation"]

1. d4 {[%clk 0:02:59.9]} 1... Nf6 {[%clk 0:02:59.1]} 2. c4 {[%clk 0:03:01.1]}
2... e6 {[%clk 0:03:00.5]} 3. Nc3 {[%clk 0:03:02.3]} 3... d5 {[%clk 0:02:58.5]}
4. cxd5 {[%clk 0:03:03.1]} 4... exd5 {[%clk 0:02:59.9]} 5. Bg5 {[%clk
0:03:04.3]} 5... c6 {[%clk 0:03:01.5]} 6. e3 {[%clk 0:03:05.3]} 6... h6 {[%clk
0:03:03.2]} 7. Bh4 {[%clk 0:03:06.4]} 7... Bf5 {[%clk 0:03:04.7]} 8. Qf3 {[%clk
0:03:01.6]} 8... Bg6 {[%clk 0:03:06.2]} 9. Bxf6 {[%clk 0:03:02.9]} 9... Qxf6
{[%clk 0:03:08]} 10. Qxf6 {[%clk 0:03:04.2]} 10... gxf6 {[%clk 0:03:09.9]} 11.
h4 {[%clk 0:03:05.1]} 11... Nd7 {[%clk 0:03:09.3]} 12. h5 {[%clk 0:03:05.8]}
12... Bf5 {[%clk 0:03:09.9]} 13. Kd2 {[%clk 0:03:05.2]} 13... Rg8 {[%clk
0:03:07]} 14. g3 {[%clk 0:03:03.5]} 14... a5 {[%clk 0:02:58.1]} 15. a4 {[%clk
0:02:58.9]} 15... Bb4 {[%clk 0:02:54.9]} 16. Bd3 {[%clk 0:02:57.9]} 16... Be6
{[%clk 0:02:39.6]} 17. Ne2 {[%clk 0:02:50.9]} 17... f5 {[%clk 0:02:40.7]} 18.
Nf4 {[%clk 0:02:48.9]} 18... Nf6 {[%clk 0:02:41.8]} 19. Ke2 {[%clk 0:02:44.7]}
19... Ke7 {[%clk 0:02:39.9]} 20. Rac1 {[%clk 0:02:37.2]} 20... Ne4 {[%clk
0:02:38.4]} 21. Kf3 {[%clk 0:02:21.1]} 21... Rg7 {[%clk 0:02:23.1]} 22. Rc2
{[%clk 0:02:04.2]} 22... Rag8 {[%clk 0:02:22.6]} 23. Kg2 {[%clk 0:02:02.6]}
23... Bd6 {[%clk 0:02:13.9]} 24. Nce2 {[%clk 0:02:01.8]} 24... Bd7 {[%clk
0:02:12.9]} 25. b3 {[%clk 0:01:58.9]} 25... Nf6 {[%clk 0:02:11.6]} 26. f3 {[%clk
0:01:45.3]} 26... Rg5 {[%clk 0:02:06.6]} 27. Rh3 {[%clk 0:01:39.5]} 27... Ne8
{[%clk 0:02:06.8]} 28. Kf2 {[%clk 0:01:37.5]} 28... Nc7 {[%clk 0:02:07.4]} 29.
Rc1 {[%clk 0:01:28.8]} 29... Ne6 {[%clk 0:02:06.2]} 30. Rh2 {[%clk 0:01:21.6]}
30... Kf6 {[%clk 0:02:04.9]} 31. Rhh1 {[%clk 0:01:19.1]} 31... R5g7 {[%clk
0:02:05.1]} 32. Rhg1 {[%clk 0:01:19.6]} 32... Rg5 {[%clk 0:02:04.6]} 33. Rh1
{[%clk 0:01:18.7]} 33... Bb4 {[%clk 0:02:02.8]} 34. Bb1 {[%clk 0:01:14.4]} 34...
R5g7 {[%clk 0:01:57.1]} 35. Nd3 {[%clk 0:01:09.9]} 35... Bd6 {[%clk 0:01:58]}
36. f4 {[%clk 0:01:08.9]} 36... Nf8 {[%clk 0:01:46.9]} 37. Ne5 {[%clk
0:01:09.5]} 37... Be6 {[%clk 0:01:46.6]} 38. Bd3 {[%clk 0:01:09]} 38... Ke7
{[%clk 0:01:46.1]} 39. Rh3 {[%clk 0:01:06.7]} 39... Nh7 {[%clk 0:01:46]} 40.
Rhh1 {[%clk 0:00:50.2]} 40... Nf6 {[%clk 0:01:47]} 41. Rcg1 {[%clk 0:00:33.7]}
41... Kd8 {[%clk 0:01:35.1]} 42. Nc3 {[%clk 0:00:24.7]} 42... Bb4 {[%clk
0:01:29.9]} 43. Ne2 {[%clk 0:00:20.9]} 43... Ne8 {[%clk 0:01:28.2]} 44. Nf3
{[%clk 0:00:21]} 44... Be7 {[%clk 0:01:26.9]} 45. Nh4 {[%clk 0:00:21.2]} 45...
Nd6 {[%clk 0:01:28.1]} 46. Nc3 {[%clk 0:00:21]} 46... Kc7 {[%clk 0:01:15.6]} 47.
Bc2 {[%clk 0:00:15.4]} 47... Kd7 {[%clk 0:01:10.3]} 48. Bd3 {[%clk 0:00:15.8]}
48... b6 {[%clk 0:01:07.9]} 49. Bb1 {[%clk 0:00:14.2]} 49... c5 {[%clk
0:01:01.3]} 50. Ne2 {[%clk 0:00:15.2]} 50... Kc6 {[%clk 0:00:59.7]} 51. Rc1
{[%clk 0:00:13]} 51... c4 {[%clk 0:00:57.9]} 52. Bc2 {[%clk 0:00:13.5]} 52...
Kd7 {[%clk 0:00:55.2]} 53. Rb1 {[%clk 0:00:08.2]} 53... c3 {[%clk 0:00:45.7]}
54. Bd3 {[%clk 0:00:06.4]} 54... Ne4+ {[%clk 0:00:33.5]} 55. Bxe4 {[%clk
0:00:07.1]} 55... dxe4 {[%clk 0:00:34.9]} 56. Rbc1 {[%clk 0:00:05.4]} 56... Bxh4
{[%clk 0:00:34]} 57. Rxh4 {[%clk 0:00:04.5]} 57... Bxb3 {[%clk 0:00:35.5]} 58.
Nxc3 {[%clk 0:00:03.8]} 58... Rxg3 {[%clk 0:00:35.4]} 59. Rh2 {[%clk 0:00:05.2]}
59... Rf3+ {[%clk 0:00:33.5]} 60. Ke2 {[%clk 0:00:06.7]} 60... Rgg3 {[%clk
0:00:33.4]} 61. Nd1 {[%clk 0:00:03.6]} 61... Bxd1+ {[%clk 0:00:34.1]} 62. Kxd1
{[%clk 0:00:05.3]} 62... Rxe3 {[%clk 0:00:35.3]} 63. Rb2 {[%clk 0:00:07]} 63...
Rg1+ {[%clk 0:00:34.8]} 64. Kd2 {[%clk 0:00:08.3]} 64... Rd3+ {[%clk 0:00:36.1]}
65. Kc2 {[%clk 0:00:09.8]} 65... Rg2+ {[%clk 0:00:36.1]} 66. Kb1 {[%clk
0:00:09.9]} 66... Rxb2+ {[%clk 0:00:36.5]} 67. Kxb2 {[%clk 0:00:11.8]} 67...
Rxd4 {[%clk 0:00:37.8]} 0-1

[Event "*** Titled Tuesday 3|2 Blitz"]
[Site "Chess.com"]
[Date "2016.03.01"]
[Round "1"]
[White "Tesla17"]
[Black "jcibarra"]
[Result "1/2-1/2"]
[WhiteElo "2236"]
[BlackElo "2475"]
[TimeControl "180+2"]
[EndTime "11:10:21 PST"]
[Termination "Game drawn by agreement"]

1. d4 {[%clk 0:03:01]} 1... Nf6 {[%clk 0:02:58.8]} 2. c4 {[%clk 0:03:02]} 2...
d6 {[%clk 0:02:59.2]} 3. Nc3 {[%clk 0:03:03]} 3... e5 {[%clk 0:02:59.7]} 4. e4
{[%clk 0:03:02.5]} 4... exd4 {[%clk 0:03:00.6]} 5. Qxd4 {[%clk 0:03:02.8]} 5...
Nc6 {[%clk 0:03:02.5]} 6. Qd2 {[%clk 0:03:03.6]} 6... g6 {[%clk 0:03:03.6]} 7.
Bd3 {[%clk 0:03:04.4]} 7... Bg7 {[%clk 0:03:02.1]} 8. Nge2 {[%clk 0:03:05.9]}
8... Ng4 {[%clk 0:03:01.5]} 9. O-O {[%clk 0:03:03.4]} 9... Qh4 {[%clk
0:02:56.7]} 10. h3 {[%clk 0:03:02.5]} 10... Nge5 {[%clk 0:02:57.9]} 11. f4
{[%clk 0:02:49.3]} 11... Nxd3 {[%clk 0:02:55.9]} 12. Qxd3 {[%clk 0:02:51.2]}
12... O-O {[%clk 0:02:56.4]} 13. Be3 {[%clk 0:02:43.4]} 13... f5 {[%clk
0:02:52.1]} 14. Bf2 {[%clk 0:02:24.2]} 14... Qd8 {[%clk 0:02:49.7]} 15. exf5
{[%clk 0:02:22.6]} 15... Bxf5 {[%clk 0:02:48.8]} 16. Qd5+ {[%clk 0:02:17.4]}
16... Kh8 {[%clk 0:02:48.5]} 17. Rad1 {[%clk 0:02:14.5]} 17... Qf6 {[%clk
0:02:25.3]} 18. Qd2 {[%clk 0:02:13.2]} 18... Qf7 {[%clk 0:02:21.5]} 19. b3
{[%clk 0:02:13.3]} 19... Rae8 {[%clk 0:02:19.6]} 20. Nd4 {[%clk 0:02:14.3]}
20... Bd7 {[%clk 0:01:54.2]} 21. Nd5 {[%clk 0:02:11.4]} 21... Bc8 {[%clk
0:01:50.6]} 22. Kh1 {[%clk 0:02:04.1]} 22... a6 {[%clk 0:01:46.5]} 23. a4 {[%clk
0:02:02.9]} 23... Nd8 {[%clk 0:01:35.9]} 24. Bg1 {[%clk 0:01:54.4]} 24... Re4
{[%clk 0:01:31.2]} 25. Rde1 {[%clk 0:01:29.6]} 25... Rfe8 {[%clk 0:01:25.6]} 26.
Rxe4 {[%clk 0:01:25.8]} 26... Rxe4 {[%clk 0:01:27.5]} 27. Nc3 {[%clk 0:01:26.8]}
27... Re8 {[%clk 0:01:26.3]} 28. Nd5 {[%clk 0:01:27.7]} 28... Re4 {[%clk
0:01:26.4]} 29. Nc3 {[%clk 0:01:28.6]} 29... Re8 {[%clk 0:01:27.3]} 30. Nd5
{[%clk 0:01:29.8]} 30... c5 {[%clk 0:01:17]} 31. Nf3 {[%clk 0:01:26.2]} 31...
Ne6 {[%clk 0:01:12]} 32. Re1 {[%clk 0:01:27.2]} 32... Bd7 {[%clk 0:01:11.8]} 33.
a5 {[%clk 0:01:25.8]} 33... Bc6 {[%clk 0:01:12.7]} 34. Re2 {[%clk 0:01:23]}
34... h6 {[%clk 0:01:03.6]} 35. Qe1 {[%clk 0:01:13.7]} 35... Bxd5 {[%clk
0:01:04.1]} 36. cxd5 {[%clk 0:01:13]} 36... Nc7 {[%clk 0:01:05.6]} 37. Rxe8+
{[%clk 0:01:11.6]} 37... Nxe8 {[%clk 0:01:03.7]} 38. Qe4 {[%clk 0:01:03.8]}
38... Nc7 {[%clk 0:01:03.6]} 39. Nh4 {[%clk 0:01:01.9]} 39... Kh7 {[%clk
0:01:00.8]} 40. f5 {[%clk 0:01:03.1]} 40... gxf5 {[%clk 0:01:01.5]} 41. Nxf5
{[%clk 0:01:04.1]} 41... Qxd5 {[%clk 0:00:52.9]} 42. Nxd6+ {[%clk 0:01:02.8]}
42... Qxe4 {[%clk 0:00:52.9]} 43. Nxe4 {[%clk 0:01:04.7]} 43... Ne6 {[%clk
0:00:47.5]} 44. Nxc5 {[%clk 0:01:04.9]} 44... Nxc5 {[%clk 0:00:47.6]} 45. Bxc5
{[%clk 0:01:06.8]} 45... Bc3 {[%clk 0:00:49.2]} 46. Bb6 {[%clk 0:01:07.8]} 46...
Kg6 {[%clk 0:00:48]} 47. g4 {[%clk 0:01:08.9]} 47... h5 {[%clk 0:00:44.7]} 48.
Kg2 {[%clk 0:01:10.1]} 48... hxg4 {[%clk 0:00:46.2]} 49. hxg4 {[%clk 0:01:11.7]}
49... Kf6 {[%clk 0:00:47.3]} 50. Kf3 {[%clk 0:01:13]} 50... Ke5 {[%clk
0:00:48.1]} 51. Bd8 {[%clk 0:01:12.9]} 51... Bd2 {[%clk 0:00:46.5]} 52. Kg3
{[%clk 0:01:08.9]} 52... Be1+ {[%clk 0:00:46.8]} 53. Kh3 {[%clk 0:01:09.4]}
53... Kf4 {[%clk 0:00:46.9]} 54. Bc7+ {[%clk 0:01:09.7]} 54... Kg5 {[%clk
0:00:44.6]} 55. Bb6 {[%clk 0:01:05]} 55... Kf4 {[%clk 0:00:44.5]} 56. Bd8 {[%clk
0:01:06]} 56... Bf2 {[%clk 0:00:42.6]} 57. g5 {[%clk 0:01:04.7]} 57... Kf5
{[%clk 0:00:43]} 58. Kg2 {[%clk 0:01:04.8]} 58... Be3 {[%clk 0:00:40.6]} 59. Kf3
{[%clk 0:01:06.2]} 59... Bxg5 {[%clk 0:00:36.9]} 60. Bxg5 {[%clk 0:01:06.1]}
60... Kxg5 {[%clk 0:00:38.8]} 61. Ke4 {[%clk 0:01:08]} 61... Kf6 {[%clk
0:00:40.6]} 62. Kd5 {[%clk 0:01:09.5]} 62... Ke7 {[%clk 0:00:42.1]} 63. Kc5
{[%clk 0:01:05.3]} 63... Kd7 {[%clk 0:00:43.1]} 64. Kb6 {[%clk 0:00:58.7]} 64...
Kc8 {[%clk 0:00:44.1]} 65. Ka7 {[%clk 0:00:48.8]} 65... Kc7 {[%clk 0:00:45]} 66.
Ka8 {[%clk 0:00:48]} 66... b6 {[%clk 0:00:39.2]} 67. Ka7 {[%clk 0:00:40.8]}
67... bxa5 {[%clk 0:00:36.6]} 68. Kxa6 {[%clk 0:00:42.1]} 68... a4 {[%clk
0:00:38.5]} 69. bxa4 {[%clk 0:00:42.1]} 69... Kb8 {[%clk 0:00:39.6]} 1/2-1/2

[Event "*** Titled Tuesday 3|2 Blitz"]
[Site "Chess.com"]
[Date "2016.03.01"]
[Round "1"]
[White "ChessTrener"]
[Black "oskariot"]
[Result "1-0"]
[WhiteElo "2560"]
[BlackElo "2312"]
[TimeControl "180+2"]
[EndTime "11:10:22 PST"]
[Termination "ChessTrener won on time"]

1. e4 {[%clk 0:02:57.3]} 1... c5 {[%clk 0:02:59.6]} 2. Ne2 {[%clk 0:02:51.4]}
2... d6 {[%clk 0:03:00.8]} 3. g3 {[%clk 0:02:52.6]} 3... g6 {[%clk 0:02:59]} 4.
Bg2 {[%clk 0:02:53.6]} 4... Bg7 {[%clk 0:03:00.7]} 5. c3 {[%clk 0:02:54.6]} 5...
Nc6 {[%clk 0:03:02.2]} 6. d4 {[%clk 0:02:55.6]} 6... cxd4 {[%clk 0:03:01.6]} 7.
cxd4 {[%clk 0:02:57.5]} 7... Bg4 {[%clk 0:03:02.7]} 8. f3 {[%clk 0:02:57]} 8...
Bd7 {[%clk 0:03:02.4]} 9. Be3 {[%clk 0:02:52.6]} 9... Nf6 {[%clk 0:02:58.3]} 10.
Nbc3 {[%clk 0:02:51.9]} 10... O-O {[%clk 0:02:56.1]} 11. O-O {[%clk 0:02:53.1]}
11... a6 {[%clk 0:02:50.1]} 12. Qd2 {[%clk 0:02:53.3]} 12... b5 {[%clk
0:02:47.7]} 13. b3 {[%clk 0:02:50.2]} 13... Rc8 {[%clk 0:02:45.5]} 14. Rac1
{[%clk 0:02:50.4]} 14... Re8 {[%clk 0:02:14.3]} 15. h3 {[%clk 0:02:48.8]} 15...
e5 {[%clk 0:02:04.5]} 16. Rfd1 {[%clk 0:02:48.7]} 16... exd4 {[%clk 0:01:49]}
17. Nxd4 {[%clk 0:02:49.1]} 17... Nxd4 {[%clk 0:01:36.5]} 18. Bxd4 {[%clk
0:02:46.8]} 18... b4 {[%clk 0:01:33]} 19. Na4 {[%clk 0:02:47.5]} 19... Rxc1
{[%clk 0:01:27.8]} 20. Rxc1 {[%clk 0:02:47]} 20... Bxa4 {[%clk 0:01:28.8]} 21.
bxa4 {[%clk 0:02:47.7]} 21... d5 {[%clk 0:01:26]} 22. e5 {[%clk 0:02:46.4]}
22... Nh5 {[%clk 0:01:25.1]} 23. g4 {[%clk 0:02:44.2]} 23... Ng3 {[%clk
0:01:23.5]} 24. Kh2 {[%clk 0:02:32.6]} 24... Qh4 {[%clk 0:01:02.6]} 25. Re1
{[%clk 0:02:32.9]} 25... Bh6 {[%clk 0:00:30.7]} 26. Be3 {[%clk 0:02:27]} 26...
Bxe3 {[%clk 0:00:28.5]} 27. Qxe3 {[%clk 0:02:26.2]} 27... d4 {[%clk 0:00:27.7]}
28. Qd2 {[%clk 0:02:06.1]} 28... a5 {[%clk 0:00:23.9]} 29. f4 {[%clk 0:02:05.2]}
29... h5 {[%clk 0:00:21.3]} 30. Qf2 {[%clk 0:02:01.2]} 30... Nf5 {[%clk
0:00:18.9]} 31. Qxh4 {[%clk 0:02:02.1]} 31... Nxh4 {[%clk 0:00:20.2]} 32. Bh1
{[%clk 0:02:02.1]} 32... hxg4 {[%clk 0:00:20.5]} 33. hxg4 {[%clk 0:02:03.4]}
33... g5 {[%clk 0:00:21.6]} 34. f5 {[%clk 0:01:49.5]} 34... d3 {[%clk
0:00:22.9]} 35. e6 {[%clk 0:01:39]} 35... fxe6 {[%clk 0:00:23.3]} 36. fxe6
{[%clk 0:01:39.1]} 36... d2 {[%clk 0:00:24.6]} 37. Rd1 {[%clk 0:01:39.5]} 37...
Kg7 {[%clk 0:00:25.6]} 38. Bd5 {[%clk 0:01:34.9]} 38... Rd8 {[%clk 0:00:23.6]}
39. e7 {[%clk 0:01:22.4]} 39... Re8 {[%clk 0:00:21.8]} 40. Rxd2 {[%clk
0:01:23.8]} 40... Rxe7 {[%clk 0:00:23.2]} 41. Bc6 {[%clk 0:01:24.9]} 41... Rc7
{[%clk 0:00:23.1]} 42. Rd6 {[%clk 0:01:24.8]} 42... Ng6 {[%clk 0:00:20.4]} 43.
Be4 {[%clk 0:01:25.8]} 43... Nf4 {[%clk 0:00:20.4]} 44. Bf5 {[%clk 0:01:26.8]}
44... Re7 {[%clk 0:00:20.3]} 45. Rd2 {[%clk 0:01:08.7]} 45... Re3 {[%clk
0:00:21.1]} 46. Kg1 {[%clk 0:01:06.3]} 46... Ra3 {[%clk 0:00:19.1]} 47. Kf2
{[%clk 0:01:04.9]} 47... Kf6 {[%clk 0:00:20.4]} 48. Bb1 {[%clk 0:01:04.3]} 48...
Rxa4 {[%clk 0:00:18.4]} 49. Rd6+ {[%clk 0:01:05.4]} 49... Ke5 {[%clk 0:00:19.4]}
50. Rb6 {[%clk 0:01:06.4]} 50... Ra3 {[%clk 0:00:20.4]} 51. Rb5+ {[%clk
0:01:07.7]} 51... Kf6 {[%clk 0:00:20]} 52. Rf5+ {[%clk 0:01:08.7]} 52... Ke6
{[%clk 0:00:20.3]} 53. Ke1 {[%clk 0:01:04.7]} 53... Rh3 {[%clk 0:00:15.4]} 54.
Be4 {[%clk 0:01:03.4]} 54... Re3+ {[%clk 0:00:10.1]} 55. Kd2 {[%clk 0:01:03.3]}
55... Rxe4 {[%clk 0:00:01.9]} 56. Rxg5 {[%clk 0:01:04.1]} 56... Re2+ {[%clk
0:00:01.6]} 57. Kc1 {[%clk 0:01:03.5]} 1-0

[Event "*** Titled Tuesday 3|2 Blitz"]
[Site "Chess.com"]
[Date "2016.03.01"]
[Round "1"]
[White "dretch"]
[Black "petrpalachev"]
[Result "0-1"]
[WhiteElo "2474"]
[BlackElo "2278"]
[TimeControl "180+2"]
[EndTime "11:10:32 PST"]
[Termination "petrpalachev won by checkmate"]

1. d4 {[%clk 0:02:52.9]} 1... Nf6 {[%clk 0:02:58.5]} 2. c4 {[%clk 0:02:53.5]}
2... e6 {[%clk 0:02:59.3]} 3. Nc3 {[%clk 0:02:54.7]} 3... Bb4 {[%clk 0:02:59.7]}
4. Qc2 {[%clk 0:02:55.5]} 4... O-O {[%clk 0:02:59.9]} 5. e4 {[%clk 0:02:55.5]}
5... d5 {[%clk 0:02:59.2]} 6. e5 {[%clk 0:02:56.7]} 6... Ne4 {[%clk 0:03:00.9]}
7. Bd3 {[%clk 0:02:57.8]} 7... c5 {[%clk 0:02:44.8]} 8. Nf3 {[%clk 0:02:58.5]}
8... cxd4 {[%clk 0:02:38.1]} 9. Nxd4 {[%clk 0:03:00.4]} 9... Bxc3+ {[%clk
0:02:36]} 10. bxc3 {[%clk 0:02:59.5]} 10... Nd7 {[%clk 0:02:36.1]} 11. Bf4
{[%clk 0:02:50.8]} 11... Qh4 {[%clk 0:02:35.6]} 12. g3 {[%clk 0:02:48.9]} 12...
Qh3 {[%clk 0:02:27]} 13. O-O-O {[%clk 0:02:46.8]} 13... g5 {[%clk 0:02:14.2]}
14. Bf1 {[%clk 0:02:27.2]} 14... Qh5 {[%clk 0:02:05.8]} 15. Be3 {[%clk 0:01:57]}
15... Nxe5 {[%clk 0:02:03.2]} 16. f4 {[%clk 0:01:35]} 16... Ng4 {[%clk
0:01:29.7]} 17. Bd2 {[%clk 0:01:33.8]} 17... Ngf2 {[%clk 0:01:27.7]} 18. Be2
{[%clk 0:01:31.9]} 18... Qh3 {[%clk 0:01:16.8]} 19. fxg5 {[%clk 0:01:26.4]}
19... Nxh1 {[%clk 0:01:10]} 20. Rxh1 {[%clk 0:01:24.2]} 20... Nxd2 {[%clk
0:01:06.8]} 21. Qxd2 {[%clk 0:01:22.8]} 21... e5 {[%clk 0:01:07.1]} 22. Nf3
{[%clk 0:01:20.7]} 22... e4 {[%clk 0:01:00.2]} 23. Nh4 {[%clk 0:01:16.2]} 23...
dxc4 {[%clk 0:00:46.2]} 24. Rf1 {[%clk 0:01:00.3]} 24... Be6 {[%clk 0:00:31.1]}
25. Rf6 {[%clk 0:01:00.3]} 25... Qxh2 {[%clk 0:00:28]} 26. g6 {[%clk 0:00:35.6]}
26... Qg1+ {[%clk 0:00:23.6]} 27. Kb2 {[%clk 0:00:26.1]} 27... Qb6+ {[%clk
0:00:22.1]} 28. Kc1 {[%clk 0:00:19.2]} 28... hxg6 {[%clk 0:00:11.6]} 29. Nxg6
{[%clk 0:00:18.2]} 29... fxg6 {[%clk 0:00:10.4]} 30. Rxg6+ {[%clk 0:00:18.4]}
30... Kf7 {[%clk 0:00:12]} 31. Bh5 {[%clk 0:00:17.7]} 31... Qg1+ {[%clk
0:00:10.8]} 32. Kb2 {[%clk 0:00:13.8]} 32... Qb6+ {[%clk 0:00:09.9]} 33. Kc1
{[%clk 0:00:13.8]} 33... Ke7 {[%clk 0:00:09.4]} 34. Rg7+ {[%clk 0:00:12.1]}
34... Rf7 {[%clk 0:00:09.7]} 35. Qg5+ {[%clk 0:00:12.3]} 35... Kd6 {[%clk
0:00:04.8]} 36. Bxf7 {[%clk 0:00:12.8]} 36... Qg1+ {[%clk 0:00:04.7]} 37. Kb2
{[%clk 0:00:13.8]} 37... Qf2+ {[%clk 0:00:06.2]} 38. Kc1 {[%clk 0:00:13.9]}
38... Bxf7 {[%clk 0:00:08.1]} 39. Qh6+ {[%clk 0:00:13.1]} 39... Ke7 {[%clk
0:00:08.6]} 40. Qh4+ {[%clk 0:00:12.8]} 40... Qf6 {[%clk 0:00:09.7]} 41. Qxe4+
{[%clk 0:00:13.4]} 41... Kf8 {[%clk 0:00:11]} 42. Rh7 {[%clk 0:00:06.7]} 42...
Qxc3+ {[%clk 0:00:11.3]} 43. Kb1 {[%clk 0:00:08.4]} 43... Qd3+ {[%clk
0:00:12.8]} 44. Qxd3 {[%clk 0:00:09.3]} 44... cxd3 {[%clk 0:00:14.7]} 45. Rh8+
{[%clk 0:00:11]} 45... Bg8 {[%clk 0:00:16.1]} 46. Kc1 {[%clk 0:00:12.9]} 46...
Kg7 {[%clk 0:00:17]} 47. Rh4 {[%clk 0:00:13.5]} 47... Rc8+ {[%clk 0:00:18.1]}
48. Kd2 {[%clk 0:00:14.6]} 48... Bh7 {[%clk 0:00:19.9]} 49. Ra4 {[%clk
0:00:13.9]} 49... Rc2+ {[%clk 0:00:20.2]} 50. Kd1 {[%clk 0:00:15.4]} 50... a6
{[%clk 0:00:19.4]} 51. Rb4 {[%clk 0:00:16.7]} 51... b5 {[%clk 0:00:19.5]} 52. a4
{[%clk 0:00:18.1]} 52... Rc4 {[%clk 0:00:18.7]} 53. Rb2 {[%clk 0:00:17.2]} 53...
Rxa4 {[%clk 0:00:19.5]} 54. g4 {[%clk 0:00:18.8]} 54... Rxg4 {[%clk 0:00:19.1]}
55. Rh2 {[%clk 0:00:19.7]} 55... Be4 {[%clk 0:00:18.6]} 56. Ke1 {[%clk
0:00:18.1]} 56... Rg1+ {[%clk 0:00:18.4]} 57. Kd2 {[%clk 0:00:14.5]} 57... Rg2+
{[%clk 0:00:19.7]} 58. Rxg2+ {[%clk 0:00:15.8]} 58... Bxg2 {[%clk 0:00:21.6]}
59. Kxd3 {[%clk 0:00:17.4]} 59... Kf6 {[%clk 0:00:22.8]} 60. Kc3 {[%clk
0:00:17.9]} 60... Ke6 {[%clk 0:00:24.7]} 61. Kb3 {[%clk 0:00:18.6]} 61... Kd5
{[%clk 0:00:26.2]} 62. Kb4 {[%clk 0:00:19.9]} 62... Kc6 {[%clk 0:00:27.6]} 63.
Ka5 {[%clk 0:00:21.1]} 63... Kb7 {[%clk 0:00:29.2]} 64. Kb4 {[%clk 0:00:21.9]}
64... Kb6 {[%clk 0:00:31.1]} 65. Kc3 {[%clk 0:00:23.3]} 65... a5 {[%clk
0:00:33]} 66. Kd4 {[%clk 0:00:24.7]} 66... b4 {[%clk 0:00:32.9]} 67. Kc4 {[%clk
0:00:25.9]} 67... Bc6 {[%clk 0:00:33.1]} 68. Kd4 {[%clk 0:00:26.1]} 68... Kb5
{[%clk 0:00:34.2]} 69. Kd3 {[%clk 0:00:27.1]} 69... a4 {[%clk 0:00:34.4]} 70.
Kd4 {[%clk 0:00:27.5]} 70... a3 {[%clk 0:00:35.2]} 71. Kd3 {[%clk 0:00:28.6]}
71... a2 {[%clk 0:00:36.6]} 72. Kc2 {[%clk 0:00:28.6]} 72... a1=Q {[%clk
0:00:37.2]} 73. Kb3 {[%clk 0:00:29.4]} 73... Qc3+ {[%clk 0:00:38.1]} 74. Ka2
{[%clk 0:00:30.5]} 74... Bd5+ {[%clk 0:00:38.7]} 75. Kb1 {[%clk 0:00:31.3]}
75... Be4+ {[%clk 0:00:40]} 76. Ka2 {[%clk 0:00:32.1]} 76... b3+ {[%clk
0:00:41.6]} 77. Ka3 {[%clk 0:00:33]} 77... b2+ {[%clk 0:00:42.9]} 78. Ka2 {[%clk
0:00:34.2]} 78... b1=Q# {[%clk 0:00:44.3]} 0-1